[Event "Titled Tuesday Blitz November 22 Early 2022"]
[White "Aizpurua, Patrick Emilio"]
[Black "Ansh M Shah"]
[WhiteFideId "6600522"]
[BlackFideId "25033379"]
[WhiteElo "2378"]
[BlackElo "2084"]
[Result "1/2-1/2"]
[Round "07"]
[TimeControl "180+1"]
[Date "2022.11.23"]
[WhiteClock "0:01:36"]
[BlackClock "0:00:18"]

1. d4 {[%clk 0:03:00]}  Nf6 {[%clk 0:02:59]} 2. Nf3 {[%clk 0:03:01]}  e6 {[%clk 0:03:00]} 3. c4 {[%clk 0:03:01]}  d5 {[%clk 0:03:00]} 4. g3 {[%clk 0:03:01]}  Be7 {[%clk 0:03:01]} 5. Bg2 {[%clk 0:03:02]}  O-O {[%clk 0:03:01]} 6. O-O {[%clk 0:03:02]}  c6 {[%clk 0:03:02]} 7. Qc2 {[%clk 0:03:02]}  Nbd7 {[%clk 0:03:02]} 8. b3 {[%clk 0:03:01]}  b6 {[%clk 0:03:00]} 9. Rd1 {[%clk 0:03:02]}  Bb7 {[%clk 0:02:59]} 10. Nc3 {[%clk 0:03:02]}  Rc8 {[%clk 0:02:59]} 11. e4 {[%clk 0:03:02]}  dxe4 {[%clk 0:02:59]} 12. Nxe4 {[%clk 0:03:03]}  Nxe4 {[%clk 0:02:59]} 13. Qxe4 {[%clk 0:03:03]}  Nf6 {[%clk 0:03:00]} 14. Qe2 {[%clk 0:03:03]}  c5 {[%clk 0:03:00]} 15. dxc5 {[%clk 0:02:52]}  Qc7 {[%clk 0:02:53]} 16. cxb6 {[%clk 0:02:51]}  Qxb6 {[%clk 0:02:54]} 17. Be3 {[%clk 0:02:51]}  Qa5 {[%clk 0:02:53]} 18. Qd2 {[%clk 0:02:46]}  Bb4 {[%clk 0:02:48]} 19. Qe2 {[%clk 0:02:39]}  Ne4 {[%clk 0:02:31]} 20. Rd7 {[%clk 0:02:26]}  Bc6 {[%clk 0:02:19]} 21. Rxa7 {[%clk 0:02:26]}  Qh5 {[%clk 0:02:12]} 22. Nd4 {[%clk 0:02:18]}  Qxe2 {[%clk 0:01:32]} 23. Nxe2 {[%clk 0:02:19]}  Rfd8 {[%clk 0:01:22]} 24. Nd4 {[%clk 0:02:05]}  Ba8 {[%clk 0:00:43]} 25. Rxa8 {[%clk 0:02:04]}  Rxa8 {[%clk 0:00:44]} 26. Bxe4 {[%clk 0:02:04]}  Bc3 {[%clk 0:00:44]} 27. Bxa8 {[%clk 0:01:57]}  Bxa1 {[%clk 0:00:44]} 28. Nc2 {[%clk 0:01:53]}  Rxa8 {[%clk 0:00:35]} 29. Nxa1 {[%clk 0:01:53]}  Rxa2 {[%clk 0:00:36]} 30. Bd4 {[%clk 0:01:52]}  Rd2 {[%clk 0:00:27]} 31. Bc3 {[%clk 0:01:48]}  Rd3 {[%clk 0:00:26]} 32. Bb2 {[%clk 0:01:48]}  Rd2 {[%clk 0:00:23]} 33. Bc3 {[%clk 0:01:48]}  Rd3 {[%clk 0:00:21]} 34. Be5 {[%clk 0:01:39]}  f6 {[%clk 0:00:20]} 35. Bb2 {[%clk 0:01:39]}  Rd2 {[%clk 0:00:20]} 36. Bc3 {[%clk 0:01:39]}  Rd3 {[%clk 0:00:19]} 37. Bb2 {[%clk 0:01:35]}  Rd2 {[%clk 0:00:18]} 38. Bc3 {[%clk 0:01:35]}  Rd3 {[%clk 0:00:18]} 39. Bb2 {[%clk 0:01:36]} 1/2-1/2


[Site "https://www.chess.com"]

[Event "Titled Tuesday Blitz November 22 Early 2022"]
[White "Akbas, Umut Ata"]
[Black "Djokic, Mihailo"]
[WhiteFideId "44572646"]
[BlackFideId "976440"]
[WhiteElo "2192"]
[BlackElo "2315"]
[Result "1-0"]
[Round "07"]
[TimeControl "180+1"]
[Date "2022.11.23"]
[WhiteClock "0:01:51"]
[BlackClock "0:00:56"]

1. c4 {[%clk 0:03:00]}  e5 {[%clk 0:02:59]} 2. Nc3 {[%clk 0:03:01]}  Nc6 {[%clk 0:02:47]} 3. Nf3 {[%clk 0:03:00]}  Nf6 {[%clk 0:02:43]} 4. g3 {[%clk 0:03:00]}  Bb4 {[%clk 0:02:41]} 5. Nd5 {[%clk 0:02:58]}  Bc5 {[%clk 0:02:39]} 6. e3 {[%clk 0:02:57]}  d6 {[%clk 0:02:31]} 7. d4 {[%clk 0:02:56]}  Nxd5 {[%clk 0:02:27]} 8. cxd5 {[%clk 0:02:52]}  Bb4+ {[%clk 0:02:20]} 9. Nd2 {[%clk 0:02:52]}  Bxd2+ {[%clk 0:02:16]} 10. Qxd2 {[%clk 0:02:51]}  Ne7 {[%clk 0:02:15]} 11. Bg2 {[%clk 0:02:48]}  O-O {[%clk 0:02:08]} 12. O-O {[%clk 0:02:48]}  Bf5 {[%clk 0:02:08]} 13. e4 {[%clk 0:02:47]}  Bg6 {[%clk 0:02:05]} 14. dxe5 {[%clk 0:02:44]}  dxe5 {[%clk 0:01:59]} 15. Qc3 {[%clk 0:02:43]}  f6 {[%clk 0:01:48]} 16. Be3 {[%clk 0:02:44]}  c6 {[%clk 0:01:48]} 17. Rfd1 {[%clk 0:02:38]}  cxd5 {[%clk 0:01:46]} 18. exd5 {[%clk 0:02:39]}  Qd7 {[%clk 0:01:42]} 19. d6 {[%clk 0:02:38]}  Nc6 {[%clk 0:01:35]} 20. b4 {[%clk 0:02:38]}  Rac8 {[%clk 0:01:31]} 21. Qb2 {[%clk 0:02:35]}  Bf7 {[%clk 0:01:16]} 22. b5 {[%clk 0:02:29]}  Na5 {[%clk 0:01:14]} 23. a4 {[%clk 0:02:06]}  Nc4 {[%clk 0:01:13]} 24. Qe2 {[%clk 0:02:05]}  Nxd6 {[%clk 0:01:10]} 25. Bxa7 {[%clk 0:02:03]}  Qe7 {[%clk 0:01:04]} 26. Rac1 {[%clk 0:01:57]}  Bb3 {[%clk 0:00:59]} 27. Re1 {[%clk 0:01:52]}  Bxa4 {[%clk 0:00:56]} 28. Qa2+ {[%clk 0:01:51]} 1-0


[Site "https://www.chess.com"]

[Event "Titled Tuesday Blitz November 22 Early 2022"]
[White "Aldokhin, Ivan"]
[Black "Storey, Charles H"]
[WhiteFideId "24115720"]
[BlackFideId "406686"]
[WhiteElo "2313"]
[BlackElo "2252"]
[Result "0-1"]
[Round "07"]
[TimeControl "180+1"]
[Date "2022.11.23"]
[WhiteClock "0:00:04"]
[BlackClock "0:00:11"]

1. e4 {[%clk 0:03:00]}  g6 {[%clk 0:02:57]} 2. d4 {[%clk 0:02:59]}  Bg7 {[%clk 0:02:58]} 3. Nc3 {[%clk 0:03:00]}  c5 {[%clk 0:02:58]} 4. Nf3 {[%clk 0:02:59]}  Qa5 {[%clk 0:02:58]} 5. d5 {[%clk 0:02:57]}  Bxc3+ {[%clk 0:02:48]} 6. bxc3 {[%clk 0:02:57]}  Nf6 {[%clk 0:02:47]} 7. e5 {[%clk 0:02:13]}  Nxd5 {[%clk 0:02:36]} 8. Qxd5 {[%clk 0:02:05]}  Qxc3+ {[%clk 0:02:36]} 9. Qd2 {[%clk 0:01:45]}  Qxa1 {[%clk 0:02:35]} 10. Bc4 {[%clk 0:01:45]}  Nc6 {[%clk 0:02:11]} 11. O-O {[%clk 0:01:06]}  Nxe5 {[%clk 0:02:10]} 12. Nxe5 {[%clk 0:00:59]}  Qxe5 {[%clk 0:02:09]} 13. Re1 {[%clk 0:00:59]}  Qd4 {[%clk 0:01:47]} 14. Qg5 {[%clk 0:00:58]}  O-O {[%clk 0:01:45]} 15. Bf1 {[%clk 0:00:46]}  f6 {[%clk 0:01:21]} 16. Qg3 {[%clk 0:00:38]}  e5 {[%clk 0:01:12]} 17. Bh6 {[%clk 0:00:29]}  Rf7 {[%clk 0:01:05]} 18. Be3 {[%clk 0:00:27]}  Qd5 {[%clk 0:00:48]} 19. Qh4 {[%clk 0:00:22]}  Qc6 {[%clk 0:00:40]} 20. f4 {[%clk 0:00:09]}  d5 {[%clk 0:00:34]} 21. fxe5 {[%clk 0:00:03]}  fxe5 {[%clk 0:00:34]} 22. Bh6 {[%clk 0:00:03]}  Qf6 {[%clk 0:00:24]} 23. Qg3 {[%clk 0:00:02]}  e4 {[%clk 0:00:16]} 24. Bg5 {[%clk 0:00:02]}  Qf5 {[%clk 0:00:15]} 25. Be2 {[%clk 0:00:01]}  Bd7 {[%clk 0:00:12]} 26. h3 {[%clk 0:00:02]}  Re8 {[%clk 0:00:10]} 27. Bh6 {[%clk 0:00:02]}  Qf6 {[%clk 0:00:10]} 28. Rf1 {[%clk 0:00:02]}  Qe6 {[%clk 0:00:08]} 29. Re1 {[%clk 0:00:03]}  Qf6 {[%clk 0:00:08]} 30. Bg5 {[%clk 0:00:03]}  Qd4+ {[%clk 0:00:08]} 31. Kh2 {[%clk 0:00:03]}  Ref8 {[%clk 0:00:08]} 32. Be3 {[%clk 0:00:03]}  Qf6 {[%clk 0:00:07]} 33. Bxc5 {[%clk 0:00:03]}  Rc8 {[%clk 0:00:06]} 34. Be3 {[%clk 0:00:03]}  Rxc2 {[%clk 0:00:06]} 35. Bg4 {[%clk 0:00:02]}  Bxg4 {[%clk 0:00:05]} 36. Qxg4 {[%clk 0:00:03]}  Rc6 {[%clk 0:00:06]} 37. Rd1 {[%clk 0:00:02]}  Qd6+ {[%clk 0:00:06]} 38. Kh1 {[%clk 0:00:02]}  Qf6 {[%clk 0:00:06]} 39. Bd4 {[%clk 0:00:02]}  Qf5 {[%clk 0:00:06]} 40. Qg3 {[%clk 0:00:03]}  Rc4 {[%clk 0:00:06]} 41. Qe3 {[%clk 0:00:03]}  Rxd4 {[%clk 0:00:06]} 42. Qxd4 {[%clk 0:00:03]}  h5 {[%clk 0:00:05]} 43. Qc5 {[%clk 0:00:03]}  Kh7 {[%clk 0:00:06]} 44. Qd4 {[%clk 0:00:03]}  b6 {[%clk 0:00:06]} 45. Qc3 {[%clk 0:00:03]}  Qf4 {[%clk 0:00:06]} 46. Rxd5 {[%clk 0:00:02]}  Qf1+ {[%clk 0:00:06]} 47. Kh2 {[%clk 0:00:02]}  Qf4+ {[%clk 0:00:07]} 48. Kh1 {[%clk 0:00:03]}  e3 {[%clk 0:00:07]} 49. Re5 {[%clk 0:00:03]}  Qf1+ {[%clk 0:00:07]} 50. Kh2 {[%clk 0:00:04]}  e2 {[%clk 0:00:07]} 51. Qd2 {[%clk 0:00:04]}  Qf6 {[%clk 0:00:06]} 52. Rxe2 {[%clk 0:00:04]}  Qf4+ {[%clk 0:00:06]} 53. Qxf4 {[%clk 0:00:03]}  Rxf4 {[%clk 0:00:07]} 54. Re7+ {[%clk 0:00:04]}  Kh6 {[%clk 0:00:08]} 55. Rxa7 {[%clk 0:00:05]}  Rb4 {[%clk 0:00:08]} 56. Ra6 {[%clk 0:00:04]}  Rb2 {[%clk 0:00:09]} 57. Kg3 {[%clk 0:00:04]}  Kg5 {[%clk 0:00:09]} 58. h4+ {[%clk 0:00:04]}  Kf5 {[%clk 0:00:10]} 59. Kf3 {[%clk 0:00:05]}  Rb1 {[%clk 0:00:09]} 60. Ra8 {[%clk 0:00:05]}  Ke5 {[%clk 0:00:09]} 61. Re8+ {[%clk 0:00:04]}  Kf6 {[%clk 0:00:09]} 62. Rf8+ {[%clk 0:00:04]}  Kg7 {[%clk 0:00:09]} 63. Rb8 {[%clk 0:00:05]}  Kh6 {[%clk 0:00:09]} 64. Ra8 {[%clk 0:00:04]}  Rb2 {[%clk 0:00:10]} 65. g3 {[%clk 0:00:04]}  Rb4 {[%clk 0:00:10]} 66. Ra7 {[%clk 0:00:04]}  Rb2 {[%clk 0:00:09]} 67. a3 {[%clk 0:00:04]}  Rb3+ {[%clk 0:00:09]} 68. Kf4 {[%clk 0:00:05]}  Rb2 {[%clk 0:00:09]} 69. Ke5 {[%clk 0:00:04]}  Rb3 {[%clk 0:00:07]} 70. Kf4 {[%clk 0:00:04]}  Rb1 {[%clk 0:00:07]} 71. Ra6 {[%clk 0:00:02]}  Rb3 {[%clk 0:00:06]} 72. Ra8 {[%clk 0:00:02]}  Rb2 {[%clk 0:00:07]} 73. a4 {[%clk 0:00:02]}  Rb4+ {[%clk 0:00:06]} 74. Kf3 {[%clk 0:00:01]}  Kg7 {[%clk 0:00:06]} 75. Ra7+ {[%clk 0:00:01]}  Kf6 {[%clk 0:00:06]} 76. Ke3 {[%clk 0:00:02]}  Kf5 {[%clk 0:00:06]} 77. Kf3 {[%clk 0:00:02]}  Rb3+ {[%clk 0:00:07]} 78. Kf2 {[%clk 0:00:03]}  Kg4 {[%clk 0:00:07]} 79. Rg7 {[%clk 0:00:02]}  Rb2+ {[%clk 0:00:07]} 80. Ke3 {[%clk 0:00:02]}  Kxg3 {[%clk 0:00:08]} 81. Rxg6+ {[%clk 0:00:03]}  Kxh4 {[%clk 0:00:08]} 82. Kd3 {[%clk 0:00:03]}  Rb4 {[%clk 0:00:08]} 83. Kc3 {[%clk 0:00:02]}  Rxa4 {[%clk 0:00:08]} 84. Rxb6 {[%clk 0:00:03]}  Re4 {[%clk 0:00:08]} 85. Kd3 {[%clk 0:00:03]}  Re7 {[%clk 0:00:08]} 86. Rg6 {[%clk 0:00:03]}  Kh3 {[%clk 0:00:08]} 87. Rg5 {[%clk 0:00:03]}  h4 {[%clk 0:00:08]} 88. Rg6 {[%clk 0:00:04]}  Kh2 {[%clk 0:00:09]} 89. Kd4 {[%clk 0:00:05]}  h3 {[%clk 0:00:09]} 90. Kd3 {[%clk 0:00:05]}  Kh1 {[%clk 0:00:09]} 91. Kd4 {[%clk 0:00:06]}  h2 {[%clk 0:00:10]} 92. Rg5 {[%clk 0:00:06]}  Re1 {[%clk 0:00:10]} 93. Kd3 {[%clk 0:00:06]}  Rg1 {[%clk 0:00:10]} 94. Rh5 {[%clk 0:00:05]}  Kg2 {[%clk 0:00:11]} 95. Rg5+ {[%clk 0:00:05]}  Kh3 {[%clk 0:00:10]} 96. Rh5+ {[%clk 0:00:05]}  Kg3 {[%clk 0:00:10]} 97. Rg5+ {[%clk 0:00:04]}  Kf4 {[%clk 0:00:11]} 0-1


[Site "https://www.chess.com"]

[Event "Titled Tuesday Blitz November 22 Early 2022"]
[White "Aloma Vidal, Robert"]
[Black "Lehtosaari, Mauri"]
[WhiteFideId "2260409"]
[BlackFideId "501999"]
[WhiteElo "2435"]
[BlackElo "2510"]
[Result "1/2-1/2"]
[Round "07"]
[TimeControl "180+1"]
[Date "2022.11.23"]
[WhiteClock "0:00:07"]
[BlackClock "0:00:15"]

1. e4 {[%clk 0:03:00]}  d5 {[%clk 0:02:58]} 2. exd5 {[%clk 0:03:00]}  Qxd5 {[%clk 0:02:59]} 3. Nc3 {[%clk 0:02:59]}  Qe5+ {[%clk 0:02:59]} 4. Nge2 {[%clk 0:02:54]}  c6 {[%clk 0:02:48]} 5. d4 {[%clk 0:02:54]}  Qa5 {[%clk 0:02:43]} 6. g3 {[%clk 0:02:50]}  Nf6 {[%clk 0:02:42]} 7. Bg2 {[%clk 0:02:50]}  Bg4 {[%clk 0:02:41]} 8. O-O {[%clk 0:02:51]}  e6 {[%clk 0:02:41]} 9. h3 {[%clk 0:02:34]}  Bxe2 {[%clk 0:02:39]} 10. Nxe2 {[%clk 0:02:32]}  Be7 {[%clk 0:02:37]} 11. a4 {[%clk 0:02:23]}  O-O {[%clk 0:02:30]} 12. Bd2 {[%clk 0:02:23]}  Qd8 {[%clk 0:02:29]} 13. b4 {[%clk 0:02:22]}  a6 {[%clk 0:02:27]} 14. c4 {[%clk 0:02:22]}  Nbd7 {[%clk 0:02:19]} 15. Qb3 {[%clk 0:02:20]}  Qb6 {[%clk 0:02:09]} 16. Rab1 {[%clk 0:02:12]}  Rfc8 {[%clk 0:02:04]} 17. Be3 {[%clk 0:02:11]}  Qc7 {[%clk 0:01:56]} 18. g4 {[%clk 0:02:04]}  h6 {[%clk 0:01:55]} 19. f4 {[%clk 0:02:03]}  Rab8 {[%clk 0:01:45]} 20. g5 {[%clk 0:02:00]}  hxg5 {[%clk 0:01:43]} 21. fxg5 {[%clk 0:02:01]}  Nh5 {[%clk 0:01:43]} 22. g6 {[%clk 0:01:59]}  fxg6 {[%clk 0:01:42]} 23. Qd3 {[%clk 0:01:48]}  Nf8 {[%clk 0:01:40]} 24. Qe4 {[%clk 0:01:47]}  Qd7 {[%clk 0:01:24]} 25. Nf4 {[%clk 0:01:46]}  Nxf4 {[%clk 0:01:22]} 26. Bxf4 {[%clk 0:01:45]}  Bd6 {[%clk 0:01:21]} 27. Be3 {[%clk 0:01:38]}  Re8 {[%clk 0:01:20]} 28. Rf2 {[%clk 0:01:28]}  Rbd8 {[%clk 0:01:17]} 29. b5 {[%clk 0:01:25]}  axb5 {[%clk 0:01:14]} 30. axb5 {[%clk 0:01:25]}  Rc8 {[%clk 0:01:07]} 31. bxc6 {[%clk 0:01:24]}  bxc6 {[%clk 0:01:07]} 32. Rbf1 {[%clk 0:01:16]}  Bb8 {[%clk 0:00:51]} 33. h4 {[%clk 0:00:49]}  Qd6 {[%clk 0:00:43]} 34. Bf4 {[%clk 0:00:49]}  Qe7 {[%clk 0:00:42]} 35. Bxb8 {[%clk 0:00:38]}  Rxb8 {[%clk 0:00:42]} 36. Rf7 {[%clk 0:00:37]}  Qd6 {[%clk 0:00:35]} 37. c5 {[%clk 0:00:25]}  Qg3 {[%clk 0:00:22]} 38. Qxc6 {[%clk 0:00:17]}  Rb2 {[%clk 0:00:16]} 39. Qf3 {[%clk 0:00:14]}  Qxf3 {[%clk 0:00:14]} 40. R7xf3 {[%clk 0:00:11]}  Rd8 {[%clk 0:00:14]} 41. c6 {[%clk 0:00:10]}  Rc2 {[%clk 0:00:14]} 42. Rf4 {[%clk 0:00:08]}  Nh7 {[%clk 0:00:13]} 43. Bh3 {[%clk 0:00:07]}  Nf6 {[%clk 0:00:12]} 44. Bxe6+ {[%clk 0:00:06]}  Kh7 {[%clk 0:00:13]} 45. Rxf6 {[%clk 0:00:06]}  gxf6 {[%clk 0:00:14]} 46. d5 {[%clk 0:00:06]}  Rd6 {[%clk 0:00:12]} 47. Rxf6 {[%clk 0:00:06]}  Kg7 {[%clk 0:00:12]} 48. Rf7+ {[%clk 0:00:06]}  Kh6 {[%clk 0:00:13]} 49. Kf1 {[%clk 0:00:06]}  g5 {[%clk 0:00:13]} 50. hxg5+ {[%clk 0:00:05]}  Kxg5 {[%clk 0:00:14]} 51. Ke1 {[%clk 0:00:06]}  Rcxc6 {[%clk 0:00:13]} 52. dxc6 {[%clk 0:00:05]}  Rxe6+ {[%clk 0:00:13]} 53. Kd2 {[%clk 0:00:05]}  Rxc6 {[%clk 0:00:14]} 54. Rd7 {[%clk 0:00:05]}  Kf5 {[%clk 0:00:14]} 55. Rd5+ {[%clk 0:00:06]}  Ke6 {[%clk 0:00:14]} 56. Rd3 {[%clk 0:00:06]}  Rd6 {[%clk 0:00:14]} 57. Rxd6+ {[%clk 0:00:07]}  Kxd6 {[%clk 0:00:15]} 1/2-1/2


[Site "https://www.chess.com"]

[Event "Titled Tuesday Blitz November 22 Early 2022"]
[White "Andreikin, Dmitry"]
[Black "Urazayev, Arystanbek"]
[WhiteFideId "4158814"]
[BlackFideId "13709810"]
[WhiteElo "2736"]
[BlackElo "2441"]
[Result "1-0"]
[Round "07"]
[TimeControl "180+1"]
[Date "2022.11.22"]
[WhiteClock "0:00:30"]
[BlackClock "0:00:09"]

1. d4 {[%clk 0:03:00]}  d5 {[%clk 0:03:00]} 2. c4 {[%clk 0:03:01]}  e6 {[%clk 0:03:01]} 3. Nc3 {[%clk 0:02:59]}  Nf6 {[%clk 0:03:01]} 4. cxd5 {[%clk 0:02:58]}  exd5 {[%clk 0:03:02]} 5. Bg5 {[%clk 0:02:58]}  c6 {[%clk 0:03:03]} 6. e3 {[%clk 0:02:57]}  h6 {[%clk 0:03:03]} 7. Bh4 {[%clk 0:02:57]}  Be7 {[%clk 0:03:03]} 8. Bd3 {[%clk 0:02:55]}  O-O {[%clk 0:03:03]} 9. Nge2 {[%clk 0:02:56]}  Re8 {[%clk 0:03:03]} 10. O-O {[%clk 0:02:55]}  Nbd7 {[%clk 0:03:03]} 11. a3 {[%clk 0:02:51]}  a5 {[%clk 0:03:00]} 12. Rb1 {[%clk 0:02:51]}  Nh5 {[%clk 0:02:59]} 13. Bxe7 {[%clk 0:02:50]}  Qxe7 {[%clk 0:03:00]} 14. b4 {[%clk 0:02:50]}  axb4 {[%clk 0:03:01]} 15. axb4 {[%clk 0:02:50]}  b5 {[%clk 0:03:01]} 16. e4 {[%clk 0:02:40]}  dxe4 {[%clk 0:03:00]} 17. Bxe4 {[%clk 0:02:39]}  Bb7 {[%clk 0:02:51]} 18. Bf3 {[%clk 0:02:39]}  Qg5 {[%clk 0:02:35]} 19. Qc1 {[%clk 0:02:34]}  Nhf6 {[%clk 0:02:35]} 20. g3 {[%clk 0:02:22]}  Nb6 {[%clk 0:02:26]} 21. h4 {[%clk 0:02:15]}  Qf5 {[%clk 0:02:17]} 22. Qf4 {[%clk 0:02:14]}  Qxf4 {[%clk 0:02:11]} 23. Nxf4 {[%clk 0:02:15]}  Ra3 {[%clk 0:02:11]} 24. Rfc1 {[%clk 0:02:09]}  Nc4 {[%clk 0:02:09]} 25. Ra1 {[%clk 0:02:08]}  Rea8 {[%clk 0:02:08]} 26. Rxa3 {[%clk 0:02:06]}  Rxa3 {[%clk 0:02:09]} 27. Bg2 {[%clk 0:02:01]}  g5 {[%clk 0:01:39]} 28. hxg5 {[%clk 0:01:58]}  hxg5 {[%clk 0:01:40]} 29. Nh3 {[%clk 0:01:59]}  Rb3 {[%clk 0:01:12]} 30. Nxg5 {[%clk 0:01:37]}  Rxb4 {[%clk 0:01:12]} 31. Ra1 {[%clk 0:01:38]}  Nd6 {[%clk 0:01:07]} 32. Nf3 {[%clk 0:01:35]}  Rb3 {[%clk 0:01:04]} 33. Rc1 {[%clk 0:01:34]}  Nc4 {[%clk 0:00:50]} 34. Ne5 {[%clk 0:01:28]}  Nd5 {[%clk 0:00:45]} 35. Ne4 {[%clk 0:01:20]}  Nxe5 {[%clk 0:00:34]} 36. dxe5 {[%clk 0:01:21]}  b4 {[%clk 0:00:23]} 37. Nd6 {[%clk 0:00:59]}  Rc3 {[%clk 0:00:23]} 38. Rb1 {[%clk 0:00:39]}  Ba8 {[%clk 0:00:14]} 39. Bxd5 {[%clk 0:00:37]}  cxd5 {[%clk 0:00:14]} 40. Rxb4 {[%clk 0:00:37]}  Rc1+ {[%clk 0:00:10]} 41. Kh2 {[%clk 0:00:36]}  Kh7 {[%clk 0:00:10]} 42. Rh4+ {[%clk 0:00:29]}  Kg6 {[%clk 0:00:10]} 43. Rg4+ {[%clk 0:00:30]}  Kh5 {[%clk 0:00:10]} 44. Rg8 {[%clk 0:00:30]}  Bc6 {[%clk 0:00:09]} 45. Nxf7 {[%clk 0:00:30]}  d4 {[%clk 0:00:09]} 46. Rg5# {[%clk 0:00:30]} 1-0


[Site "https://www.chess.com"]

[Event "Titled Tuesday Blitz November 22 Early 2022"]
[White "Averjanov, Alexey"]
[Black "Mohammed, Zozek Salah Mohammed"]
[WhiteFideId "14109867"]
[BlackFideId "4803361"]
[WhiteElo "2604"]
[BlackElo "2199"]
[Result "1/2-1/2"]
[Round "07"]
[TimeControl "180+1"]
[Date "2022.11.23"]
[WhiteClock "0:00:20"]
[BlackClock "0:00:13"]

1. d4 {[%clk 0:03:00]}  Nf6 {[%clk 0:02:57]} 2. c4 {[%clk 0:03:00]}  g6 {[%clk 0:02:57]} 3. Nc3 {[%clk 0:03:00]}  d5 {[%clk 0:02:57]} 4. cxd5 {[%clk 0:03:00]}  Nxd5 {[%clk 0:02:58]} 5. e4 {[%clk 0:03:00]}  Nxc3 {[%clk 0:02:58]} 6. bxc3 {[%clk 0:03:01]}  Bg7 {[%clk 0:02:58]} 7. Nf3 {[%clk 0:03:02]}  c5 {[%clk 0:02:58]} 8. Be3 {[%clk 0:03:03]}  O-O {[%clk 0:02:55]} 9. Qd2 {[%clk 0:03:03]}  Nc6 {[%clk 0:02:52]} 10. Rc1 {[%clk 0:03:03]}  Bg4 {[%clk 0:02:48]} 11. d5 {[%clk 0:03:03]}  Bxf3 {[%clk 0:02:45]} 12. gxf3 {[%clk 0:03:04]}  Ne5 {[%clk 0:02:45]} 13. Be2 {[%clk 0:03:04]}  e6 {[%clk 0:02:35]} 14. f4 {[%clk 0:03:04]}  Nd7 {[%clk 0:02:29]} 15. c4 {[%clk 0:03:04]}  exd5 {[%clk 0:02:28]} 16. cxd5 {[%clk 0:03:05]}  Re8 {[%clk 0:02:25]} 17. e5 {[%clk 0:03:03]}  b6 {[%clk 0:02:18]} 18. O-O {[%clk 0:02:55]}  Qh4 {[%clk 0:02:16]} 19. Rfd1 {[%clk 0:02:43]}  Rad8 {[%clk 0:02:11]} 20. Bf3 {[%clk 0:02:40]}  Nxe5 {[%clk 0:01:47]} 21. fxe5 {[%clk 0:02:37]}  Bxe5 {[%clk 0:01:48]} 22. Bg5 {[%clk 0:02:26]}  Qxh2+ {[%clk 0:01:32]} 23. Kf1 {[%clk 0:02:26]}  f6 {[%clk 0:01:33]} 24. Be3 {[%clk 0:02:18]}  h5 {[%clk 0:01:15]} 25. Qd3 {[%clk 0:02:09]}  Kg7 {[%clk 0:01:13]} 26. Rc4 {[%clk 0:01:51]}  Qh3+ {[%clk 0:00:47]} 27. Bg2 {[%clk 0:01:50]}  Qd7 {[%clk 0:00:42]} 28. a4 {[%clk 0:01:44]}  f5 {[%clk 0:00:35]} 29. Bg5 {[%clk 0:01:39]}  Bf6 {[%clk 0:00:33]} 30. Bxf6+ {[%clk 0:01:37]}  Kxf6 {[%clk 0:00:33]} 31. Qc3+ {[%clk 0:01:32]}  Kg5 {[%clk 0:00:30]} 32. d6 {[%clk 0:01:19]}  Re6 {[%clk 0:00:29]} 33. Qg3+ {[%clk 0:01:11]}  Kh6 {[%clk 0:00:29]} 34. Qf4+ {[%clk 0:01:06]}  Kh7 {[%clk 0:00:25]} 35. Rcc1 {[%clk 0:00:57]}  Rxd6 {[%clk 0:00:24]} 36. Rxd6 {[%clk 0:00:58]}  Qxd6 {[%clk 0:00:24]} 37. Qg5 {[%clk 0:00:55]}  Qd3+ {[%clk 0:00:23]} 38. Kg1 {[%clk 0:00:54]}  Rd7 {[%clk 0:00:22]} 39. Re1 {[%clk 0:00:52]}  Qd6 {[%clk 0:00:21]} 40. Re8 {[%clk 0:00:49]}  c4 {[%clk 0:00:19]} 41. Qe3 {[%clk 0:00:39]}  Qd1+ {[%clk 0:00:18]} 42. Kh2 {[%clk 0:00:39]}  Qd6+ {[%clk 0:00:17]} 43. f4 {[%clk 0:00:34]}  c3 {[%clk 0:00:16]} 44. Qxc3 {[%clk 0:00:26]}  Qxf4+ {[%clk 0:00:15]} 45. Kh3 {[%clk 0:00:23]}  Qg4+ {[%clk 0:00:13]} 46. Kh2 {[%clk 0:00:24]}  Qf4+ {[%clk 0:00:13]} 47. Kh3 {[%clk 0:00:20]}  Qg4+ {[%clk 0:00:13]} 48. Kh2 {[%clk 0:00:20]}  Qf4+ {[%clk 0:00:13]} 1/2-1/2


[Site "https://www.chess.com"]

[Event "Titled Tuesday Blitz November 22 Early 2022"]
[White "Barria Zuniga, Daniel"]
[Black "Xu, Yi"]
[WhiteFideId "3400816"]
[BlackFideId "8605564"]
[WhiteElo "2414"]
[BlackElo "2471"]
[Result "0-1"]
[Round "07"]
[TimeControl "180+1"]
[Date "2022.11.22"]
[WhiteClock "0:00:38"]
[BlackClock "0:01:02"]

1. d4 {[%clk 0:03:00]}  Nf6 {[%clk 0:02:59]} 2. c4 {[%clk 0:02:54]}  e6 {[%clk 0:02:59]} 3. Nf3 {[%clk 0:02:53]}  d5 {[%clk 0:02:58]} 4. Nc3 {[%clk 0:02:53]}  c6 {[%clk 0:02:58]} 5. Bg5 {[%clk 0:02:53]}  h6 {[%clk 0:02:57]} 6. Bxf6 {[%clk 0:02:52]}  Qxf6 {[%clk 0:02:57]} 7. e3 {[%clk 0:02:53]}  g6 {[%clk 0:02:57]} 8. Qc2 {[%clk 0:02:52]}  Bg7 {[%clk 0:02:55]} 9. O-O-O {[%clk 0:02:52]}  O-O {[%clk 0:02:52]} 10. h4 {[%clk 0:02:49]}  Nd7 {[%clk 0:02:43]} 11. Kb1 {[%clk 0:02:43]}  Qe7 {[%clk 0:02:38]} 12. g4 {[%clk 0:02:33]}  dxc4 {[%clk 0:02:19]} 13. Bxc4 {[%clk 0:02:32]}  b5 {[%clk 0:02:20]} 14. Be2 {[%clk 0:02:19]}  Bb7 {[%clk 0:02:20]} 15. g5 {[%clk 0:02:18]}  h5 {[%clk 0:02:19]} 16. e4 {[%clk 0:02:09]}  b4 {[%clk 0:01:54]} 17. Na4 {[%clk 0:02:07]}  c5 {[%clk 0:01:54]} 18. dxc5 {[%clk 0:01:50]}  Rac8 {[%clk 0:01:54]} 19. Rc1 {[%clk 0:01:42]}  Rc7 {[%clk 0:01:21]} 20. Qc4 {[%clk 0:00:57]}  Rfc8 {[%clk 0:01:18]} 21. Qxb4 {[%clk 0:00:55]}  Nxc5 {[%clk 0:01:14]} 22. Nxc5 {[%clk 0:00:48]}  Rxc5 {[%clk 0:01:14]} 23. Rxc5 {[%clk 0:00:48]}  Rxc5 {[%clk 0:01:13]} 24. a3 {[%clk 0:00:45]}  a5 {[%clk 0:01:07]} 25. Qb6 {[%clk 0:00:38]}  Bxe4+ {[%clk 0:01:06]} 26. Ka1 {[%clk 0:00:38]}  Rc2 {[%clk 0:01:02]} 0-1


[Site "https://www.chess.com"]